Workbook

Sheet Приложение 1
G1: Приложение 1
A2: Информация о реализации в Кромском районе муниципальных целевых программ в 2012 году
A6: № п/п | B6: Наименование программного документа, мероприятия, целевого индикатора | C6: предусмотрено программой тыс.руб. | D6: Финансирование | F6: Освоено | H6: Результаты выполнения мероприятий | J6: Достижение плановых значений целевых индикаторов
C7: сумма, тыс.руб. | D7: сумма, тыс.руб. | E7: Проценты, % | F7: сумма, тыс.руб. | G7: Проценты, %
A8: 1. | B8: Долгосрочная муниципальная целевая программа "Развитие муниципальной службы в Кромском районе на 2012-2014 годы" | C8: 36 | D8: 33.166 | E8: 92 | F8: 33.166 | G8: 92.1
B9: в том числе
B10: местный бюджет | C10: 36 | D10: 33.166 | E10: 100 | F10: 33.166 | G10: 92.1
B11: областной бюджет
B12: федеральный бюджет
B13: внебюджетные источники
B14: в том числе по мероприятиям:
B15: 1. Повышение квалификации муниципальных служащих по 72-часовой программе (с получением свидетельства, удостоверений государственного образца), в том числе обучение по профильным направлениям деятельности по краткосрочным программам | C15: 36 | D15: 33.166 | E15: 100 | F15: 33.166 | G15: 92.1 | H15: - усовершенствование нормативной правовой базы по вопросам муниципальной службы; - усовершенствование кадрового обеспечения процессов муниципального управления; - укрепление доверия граждан к деятельности органов местного самоуправления; - повышение профессионального уровня муниципальных служащих; - рост количества муниципальных служащих, прошедших профессиональную переподготовку, повышение квалификации, до 27. | J15: Прошли повышение квалификации 2012 году по 72-часовой программе 16 муниципальных служащих
B16: 2. Организация и проведение занятий с муниципальными служащими администрации по вопросам изменения действующего федерального и областного законодательства о муниципальной службе | C16: - | D16: - | E16: - | F16: - | G16: - | H16: Развитие профессиональных качеств | J16: проведено 4 ежеквартальных учебы
B17: 3. Участие муниципальных служащих администрации района повышение квалификации на обучающих семинарах для муниципальных служащих, включенных в состав кадрового резерва | C17: - | D17: - | E17: - | F17: - | G17: - | H17: Развитие профессиональных качеств, повышение квалификации на обучающих семинарах для муниципальных служащих, включенных в состав кадрового резерва | J17: обучено 4 чел.
B18: 4. Участие в совещаниях, семинарах, проводимых для работников органов местного самоуправления | C18: - | D18: - | E18: - | F18: - | G18: - | H18: Развитие профессиональных качеств
A19: 2. | B19: Долгосрочная муниципальная целевая программа "Сохранение и реконструкция военно-мемориальных объектов в Кромском районе на 2011-2015 годы" | C19: 15 | D19: 15 | E19: 100 | F19: 15 | G19: 100 | H19: мероприятие выполнено
B20: в том числе :
B21: местный бюджет | C21: 15 | D21: 15 | E21: 100 | F21: 15 | G21: 100
B22: областной бюджет
B23: федеральный бюджет
B24: внебюджетные источники
B25: в том числе по мероприятиям:
B26: Комплекс работ по ремонту и реставрации могилы советских воинов в с.Красниково | C26: 15 | D26: 15 | E26: 100 | F26: 15 | G26: 100
B27: в т.ч. местный бюджет | C27: 15 | D27: 15 | E27: 100 | F27: 15 | G27: 100
B28: областной бюджет
A29: 3. | B29: Муниципальная целевая программа "Развитие архивного дела в Кромском районе Орловской области на 2012-2016 годы" | C29: 80 | D29: 29 | E29: 36 | F29: 29 | G29: 100 | H29: Приобретено компьютерное оборудование, оборудовано второе рабочее место, ремонт дополнительного помещения не производился | J29: Оснащение архива современными техническими средствами способствует своевременному обеспечинию выполнению социальных запросов граждан
B30: в том числе :
B31: местный бюджет | C31: 80 | D31: 29 | E31: 36 | F31: 29 | G31: 100
B32: областной бюджет
B33: федеральный бюджет
B34: внебюджетные источники
B35: в том числе по мероприятиям:
B36: Ремонт дополнительного помещения, установка жалюзей | C36: 40 | D36: 0 | E36: 0 | F36: 0 | G36: 0
B37: в т.ч. местный бюджет | C37: 40 | D37: 0 | E37: 0 | F37: 0 | G37: 0
B38: Оснащение архива современными техническими средствами | C38: 40 | D38: 29 | E38: 73 | F38: 29 | G38: 100
B39: в т.ч. местный бюджет | C39: 40 | D39: 29 | E39: 73 | F39: 29 | G39: 100
B40: областной бюджет
A41: 4. | B41: Программа "Развитие физической культуры и спорта в Кромском районе на 2011-2015 годы" | C41: 320 | D41: 320 | E41: 100 | F41: 320 | G41: 100 | H41: Результатом программных мероприятий в 2012 году стало - улучшение качества жизни подрастающего поколения, их психологической устойчивости, занятости детей и подростков, укрепление их здоровья и отвлечение от пагубных пристрастий и вредных привычек.
B42: в том числе :
B43: местный бюджет | C43: 300 | D43: 300 | E43: 100 | F43: 300 | G43: 100
B44: областной бюджет
B45: федеральный бюджет
B46: внебюджетные источники | C46: 20 | D46: 20 | E46: 100 | F46: 20 | G46: 100
B47: в том числе по мероприятиям:
B48: 1. Физическое воспитание школьников | C48: 230 | D48: 230 | E48: 100 | F48: 230 | G48: 100
B49: в том числе:
B50: местный бюджет | C50: 210 | D50: 210 | E50: 100 | F50: 210 | G50: 100
B51: внебюджетные источники | C51: 20 | D51: 20 | E51: 100 | F51: 20 | G51: 100 | H51: Проведены соревнования по футболу и минифутболу
B52: Спартакиада школьников | C52: 5 | D52: 5 | E52: 100 | F52: 5 | G52: 100
B53: Смотр -конкурс спортивных баз образовательных учреждений | C53: 5 | D53: 5 | E53: 100 | F53: 5 | G53: 100 | H53: выполнено
B54: Приобретение спортинвентаря | C54: 20 | D54: 20 | E54: 100 | F54: 20 | G54: 100 | H54: Приобретение хоккейной и футбольной формы
B55: Участие в областных спортивных мероприятиях | C55: 180 | D55: 180 | E55: 100 | F55: 180 | G55: 100 | H55: выполнено
B56: 2. Спортивно - оздоровительная работа и массовый спорт в учреждениях, предприятиях, объединениях | C56: 65 | D56: 65 | E56: 100 | F56: 65 | G56: 100 | H56: выполнено
B57: в том числе:
B58: местный бюджет | C58: 65 | D58: 65 | E58: 100 | F58: 65 | G58: 100
B59: Проведение районных спортивных праздников | C59: 25 | D59: 25 | E59: 100 | F59: 25 | G59: 100
B60: Папа , мама, я - спортивнпая семья | C60: 10 | D60: 10 | E60: 100 | F60: 10 | G60: 100
B61: Сельские спортивные игры | C61: 20 | D61: 20 | E61: 100 | F61: 20 | G61: 100
B62: Проведение турнира по мини - футболу | C62: 5 | D62: 5 | E62: 100 | F62: 5 | G62: 100
B63: Проведение первенства района по волейболу | C63: 5 | D63: 5 | E63: 100 | F63: 5 | G63: 100
B64: 3. Спортивно-оздоровительная работа по месту жительства | C64: 10 | D64: 10 | E64: 100 | F64: 10 | G64: 100
B65: в том числе:
B66: местный бюджет | C66: 10 | D66: 10 | E66: 100 | F66: 10 | G66: 100
B67: Проведение соревнований среди дворовых команд | C67: 5 | D67: 5 | E67: 100 | F67: 5 | G67: 100
B68: Проведение смотра спортивных площадок | C68: 5 | D68: 5 | E68: 100 | F68: 5 | G68: 100
B69: 4. Физическая культура и спорт инвалидов | C69: 15 | D69: 15 | E69: 100 | F69: 15 | G69: 100
B70: в том числе:
B71: местный бюджет | C71: 15 | D71: 15 | E71: 100 | F71: 15 | G71: 100
A72: 5. | B72: Районная целевая комплексная программа "Молодёжь Орловщины 2011-2015 годы" | C72: 1574.5 | D72: 241.3 | E72: 15.3 | F72: 241.3 | G72: 100
B73: в том числе :
B74: местный бюджет | C74: 20 | D74: 20 | E74: 100 | F74: 20 | G74: 100
B75: областной бюджет
B76: федеральный бюджет | C76: 1539.5 | D76: 218.3 | E76: 14.1 | F76: 218.3 | G76: 100
B77: внебюджетные источники | C77: 15 | D77: 3 | E77: 20 | F77: 3 | G77: 100
B78: в том числе по мероприятиям
B79: 1. Организация ярмарок вакансий | C79: 3 | D79: 3 | E79: 100 | F79: 3 | G79: 100 | H79: Приняли участие в ярмарке вакансий 49 человек
B80: в т.ч. федеральный бюджет | C80: 3 | D80: 3 | E80: 100 | F80: 3 | G80: 100
B81: 2. Содействие социальной адаптации безработной и незанятой молодежи | C81: 0.5 | D81: 0 | E81: 0 | F81: 0 | G81: 0 | H81: Получили услуги по социальной адаптации 11 человек
B82: в т.ч. федеральный бюджет | C82: 0.5 | D82: 0 | E82: 0 | F82: 0 | G82: 0
B83: 3. Содействие организации собственного дела безработными гражданами из числа молодежи | C83: 470 | D83: 62.5 | E83: 13.3 | F83: 62.5 | G83: 100 | H83: Денежных средств было выделено всем 3 безработным гражданам из числа молодежи, обратившимся в службу занятости
B84: федеральный бюджет | C84: 470 | D84: 62.5 | E84: 13.3 | F84: 62.5 | G84: 100
B85: 4. Организация профобучения выпускников общеобразовательных учреждений, не имеющих профессии | C85: 120 | D85: 10.5 | E85: 9 | F85: 10.5 | G85: 100 | H85: Получили специальности 3 человека
B86: в т.ч. федеральный бюджет | C86: 120 | D86: 10.5 | E86: 9 | F86: 10.5 | G86: 100
B87: 5. Содействие трудоустройству выпускников общеобразовательных учреждений, не имеющих профессии | C87: 840 | D87: 0 | E87: 0 | F87: 0 | G87: 0 | H87: трудоустроено 10 человек
B88: в т.ч. федеральный бюджет | C88: 840 | D88: 0 | E88: 0 | F88: 0 | G88: 0
B89: 6. Организация временного трудоустройства выпускников начального и среднего профессионального образования в возрасте 18 - 20 лет | C89: 6.8 | D89: 30.4 | E89: в 4,5 р. | F89: 30.4 | G89: 100 | H89: Трудоустроено 3 человека выпускников начального и среднего профобразования в возрасте от 18 до 20 лет
B90: в т.ч. федеральный бюджет | C90: 6.8 | D90: 30.4 | E90: в 4,5 р. | F90: 30.4 | G90: 100
B91: 7. Организация общественных работ для безработных граждан из числа молодежи | C91: 98 | D91: 106.4 | E91: 108.6 | F91: 106.4 | G91: 100 | H91: организованы общественные работы для 10 граждан.
B92: в т.ч. федеральный бюджет | C92: 98 | D92: 106.4 | E92: 108.6 | F92: 106.4 | G92: 100
B93: 8. Организация профориентационных услуг для молодежи | C93: 1.2 | D93: 5.5 | E93: в 4,6 р. | F93: 5.5 | G93: 100 | H93: оказаны профориентационные услуги для 151 граждана
B94: в т.ч. федеральный бюджет | C94: 1.2 | D94: 5.5 | E94: в 4,6 р. | F94: 5.5 | G94: 100
B95: 9. Духовно - нравственное и гражданско -патриотическое воспитание подростков и молодежи | C95: 10 | D95: 10 | E95: 100 | F95: 10 | G95: 100 | H95: Проведен конкурс бардовской песни
B96: в т.ч.местный бюджет | C96: 10 | D96: 10 | E96: 100 | F96: 10 | G96: 100
B97: 10. Профилактика ассоциальных явлений в молодежной среде | C97: 10 | D97: 10 | E97: 100 | F97: 10 | G97: 100 | H97: Проведены спортивные соревнования с подростками, состоящими на учёте в комиссии по делам несовершеннолетних; конкурс рисунков и плакатов на тему "Я выбираю жизнь"
B98: в т.ч. местный бюджет | C98: 10 | D98: 10 | E98: 100 | F98: 10 | G98: 100
B99: 11. Социальная поддержка молодых семей | C99: 12 | D99: 0 | E99: 0 | F99: 0 | G99: 0
B100: в т.ч. внебюджетные источники | C100: 12 | D100: 0 | E100: 0 | F100: 0 | G100: 0
B101: 12. Поддержка талантливой молодежи и молодежных инициатив | C101: 3 | D101: 3 | E101: 100 | F101: 3 | G101: 100
B102: в т.ч. внебюджетные источники | C102: 3 | D102: 3 | E102: 100 | F102: 3 | G102: 100
A103: 6. | B103: Районная целевая комплексная программа "Обеспечение жильём молодых семей 2012-2015 годы" | C103: 182.6 | D103: 182.6 | E103: 100 | F103: 182.6 | G103: 100 | H103: Получила свидетельства о социальной выплате 1 молодая семьи. Отделом по работе с молодёжью, ФК и спорту ведётся приём заявлений, разъяснительно-консультационная работа. Муниципальной жилищной комиссией формируются списки молодых семей - участников программы. В настоящее время в списке нуждающихся - 29 семей.
B104: в том числе :
B105: местный бюджет | C105: 182.6 | D105: 182.6 | E105: 100 | F105: 182.6 | G105: 100 | J105: Выданы свидетельства о выделении социальных выплат 1 семье.
B106: областной бюджет
B107: федеральный бюджет
B108: внебюджетные источники
A109: 7. | B109: Муниципальная целевая программа "Комплексные меры противодействия злоупотреблению наркотиками и их незаконному обороту на 2010-2014 г.г." | C109: 4 | D109: 4 | E109: 100 | F109: 4 | G109: 100 | H109: В районе стабильная наркоситуация. Сокращается число упортебляющих наркотические и психотропные вещества, повышается антинаркотическая ориентация общества, привлечение большего количества людей к занятиям физкультурой и спортом, здоровому образу жизни;увеличение числа изъятий из незаконного оборота наркотических средств и психотропных веществ. По состоянию на 1 января 2013 года в БУЗ Орловской области "Кромская ЦРБ" не состоят на учета лица, употребляющие наркотические вещества
B110: в том числе
B111: местный бюджет | C111: 4 | D111: 4 | E111: 100 | F111: 4 | G111: 100
B112: областной бюджет
B113: федеральный бюджет
B114: внебюджетные источники
B115: в том числе по мероприятиям
B116: 1. Организационные меры | H116: Проводится ежегодный анализ состояния работы по противодействию злоупотреблению наркотиками и их незаконному обороту, обобщение административной, судебной, следственной практики по делам о правонарушениях и преступлениях. Выявляются лица допризывного возраста, употребляющие наркотические и психотропные вещества с целью предотвращения их призыва на военную службу, а также уволенные с воинской службы за употребление наркотических средств для постановки на учет. Совместно с БУЗ Орловской области "Кромской ЦРБ", отделом образования, отделом по работе с молодежью и спортом проведена 1 научно - практическая конференция по проблемам профилактики наркотических заболеваний среди молодежи.
B117: 2.Профилактика злоупотребления наркотическими средствами и психотропными веществами | C117: 2 | D117: 2 | E117: 100 | F117: 2 | G117: 100 | H117: Ежегодно проводятся круглые столы с участием старшеклассников во всех школах района, проведено в 2010 г. - 35.; в 2011 году - 37, в 2012 году -35, проведено 2 обучающих семинара в рамках месячников "Нет - наркотикам и СПИДу!", проведено 2 месячника по повышению эффективности информационной и образовательной работы среди молодежи и подростков, направленной на пропаганду здорового образа жизни. Проведен смотр - конкурс плакатов , рисунков, опубликовано 8 тематических страниц и подборок в районной газете "Заря", проведено около 95 просветительских бесед и лекций.
B118: 3. Подготовка специалистов, занимающихся профилактикой и лечением наркомании и токсикомании. | H118: Проведены районные семинары по проблемам наркомании с директорами учебных заведений, классными руководителями, врачами подростковых кабинетов.
B119: 4. Лечение и реабилитация лиц, допускающих немидицинское потребление наркотических средств и психотропных веществ | H119: выполнено
B120: 5. Культурно - массовые и спортивно - туристические мероприятия. | C120: 2 | D120: 2 | E120: 100 | F120: 2 | G120: 100 | H120: В целях пропаганды здорового образа жизни среди подростков и молодежи в районе действует 200 кружков различных направлений, традиционно проводятся районные спортивные праздники, личные первенства по шахматам, соревнования "Веселые старты" и др.
A121: 8. | B121: Долгосрочная муниципальная целевая программа "Совершенствование системы профилактики правонарушений и усиление борьбы с преступностью на территории Кромского района на 2011-2015 годы" | C121: 2.5 | D121: 2.5 | E121: 100 | F121: 2.5 | G121: 100
B122: в том числе :
B123: местный бюджет | C123: 2.5 | D123: 2.5 | E123: 100 | F123: 2.5 | G123: 100
B124: областной бюджет
B125: федеральный бюджет
B126: внебюджетные источники
B127: в том числе по мероприятиям
B128: 1. Организационные мероприятия | C128: - | D128: - | E128: - | F128: - | G128: - | H128: Работает муниципальная межведомственная комиссия по профилактике правонарушений и преступлений на территории Кромского района
B129: 2. Профилактические мероприятия по защите прав и свобод, жизни, здоровья и собственности граждан | C129: - | D129: - | E129: - | F129: - | G129: - | H129: Прокуратурой района, администрацией района осуществляется надзор за соблюдением трудового законодательства в части своевременной выплаты заработной платы, проводятся запланированные мероприятия по защите прав и свобод, жизни, здоровья и собственности граждан, проводятся мероприятия по защите прав потребителей, выявлению и профилактике правонарушений в сфере потребительского рынка.
B130: 3.Профилактика среди лиц, проповедующих экстремизм, подготавливающих и замышляющих террористические акты | C130: - | D130: - | E130: - | F130: - | G130: - | H130: Проводятся оперативно-розыскные и профилактические мероприятия по обеспечению защищенности населения от диверсионно-террористических актов
B131: 4. Профилактика и противодействие организованной преступности и коррупции | C131: - | D131: - | E131: - | F131: - | G131: - | H131: Проводятся мероприятия по противодействию коррупционным проявлениям
B132: 5. Профилактика правонарушений в сфере защиты государственной, муниципальной и иных форм собственности | C132: - | D132: - | E132: - | F132: - | G132: - | H132: Реализуется комплекс мер по защите государственной, муниципальной и иных форм собственности, проводятся прверки, выявляются административные правонарушения
B133: 6. Профилактика правонарушений в общественных местах | C133: 2 | D133: 2 | E133: 100 | F133: 2 | G133: 100 | H133: Проводятся профилактические рейды по выявлению фактов продажи алкогольной и табачной продукции несовершеннолетним, мероприятия по охране общественного порядка, осуществляется контроль за образом жизни и поведением лиц, освободившихся из мест лишения свободы
B134: 7. Профилактика правонарушений и преступлений, связанных с распространением алкоголизма, незаконным оборотом наркотиков | C134: 0.5 | D134: 0.5 | E134: 100 | F134: 0.5 | G134: 100 | H134: Ведется мониторинг наркоситуации в районе, Кромским межрайонным отделом Управления ФСКН России по Орловской области регулярно проводятся комплексные операции, направленные на пресечение незаконного оборота наркотиков и их контрабанды, обнаружение и уничтожение незаконных посевов наркосодержащих культур, организуются профилактические мероприятия в образовательных учреждениях
B135: 8. Профилактика правонарушений несовершеннолетних и молодежи | C135: - | D135: - | E135: - | F135: - | G135: - | H135: Проведены рабочие встречи с руководством учебных заведений , выявлены лица, предрасположенные к совершению правонарушений, в отношении их проведена профилактически-предупредительная работа, организованы и проведены профилактические мероприятия по пропаганде здорового образа жизни. Организована поездка профилактической направленности для несовершеннолетних учащихся образовательных учреждений Кромского района в Шаховскую воспитательную колонию. Проводится работа по выявлению, принятию на учет и организации индивидуальной профилактической работы с несовершеннолетними и семьями, находящимися в социально опасном положении. Ведется работа по обеспечению жильем лиц из числа детей-сирот и детей, оставшихся без попечения родителей, в 2012 году приобретено 2 жилых помещения.
B136: 9.Информационно- методическое обеспечение профилактической деятельности | C136: - | D136: - | E136: - | F136: - | G136: - | H136: Население района регулярно информируется через районную газету "Заря" о принимаемых мерах по преодолению детской безнадзорности и преступности, пропагандируется патриотизм, здоровый образ жизни подростков и молодежи, ориентация на духовные ценности, освещается информация о проблемах наркомании, пьянства и алкоголизма.
A137: 9. | B137: Долгосрочная районная программа развития образования в Кромском районе на 2011-2015 годы | C137: 2142.9 | D137: 2098.166 | E137: 98 | F137: =F139+F140 -> 2098.166 | G137: 100 | H137: 10 пед.работников награждены грантом Главы района по 10 тыс. рублей, 11 школьников удостоены гранта Главы района по 5 тыс. рублей. Установлена система ГЛОНАСС на автобусы Кромской средней, Гостомльской основной школ, видеонаблюдение в Кромской начальной школе, приобретались и перезаряжались огнетушители в общеобразовательные учреждения, проводились пропитки деревянных конструкций и замер сопротивления изоляции контура сопротивления.Произведен ремонткрыши, столовой Вожовской школы, заменены окна в дошкольной группе Коровье - Болотовской школы, сделан водопровод, канализация в Кутафинской школе, ремонт спортзала, электропроводки в столовой в Черкасской школе, ремонт крыши д.с.№1 в Кромской начальной школе.
B138: в том числе :
B139: местный бюджет | C139: 2142.9 | D139: 2098.166 | E139: 98 | F139: 2098.166 | G139: 100
B140: областной бюджет
B141: федеральный бюджет
B142: внебюджетные источники
B143: в том числе по мероприятиям:
B144: Совершенствование учительского корпуса | C144: 100 | D144: 100 | E144: 100 | F144: 100 | G144: 100
B145: в т.ч. местный бюджет | C145: 100 | D145: 100 | E145: 100 | F145: 100 | G145: 100
B146: Совершенствование системы поддержки талантливых детей | C146: 50 | D146: 50 | E146: 100 | F146: 50 | G146: 100
B147: в т.ч. местный бюджет | C147: 50 | D147: 50 | E147: 100 | F147: 50 | G147: 100
B148: Обеспечение всеобщего доступа к современным информационным образовательным ресурсам, внедрение программ дистанционного обучения | C148: 28.8 | D148: 28.8 | E148: 0.07 | F148: 28.8 | G148: 100
B149: в т.ч. местный бюджет | C149: 28.8 | D149: 28.8 | E149: 0.07 | F149: 28.8 | G149: 100
B150: областной бюджет | C150: - | D150: - | E150: - | F150: - | G150: -
B151: Приведение учебно - материальной базы в соответствии с современными требованиями | C151: =C139-C144-C146-C148-C154 -> 1869.1 | D151: 1824.36 | E151: 97.6 | F151: 1824.36 | G151: 100
B152: в т.ч. местный бюджет
B153: областной бюджет
B154: Обеспечение безопасности учащихся , учебных учреждений и образовательного процесса в современных условиях | C154: 95 | D154: 95 | E154: 100 | F154: 95 | G154: 100
B155: в т.ч. местный бюджет | C155: 95 | D155: 95 | E155: 100 | F155: 95 | G155: 100
B156: областной бюджет
A157: 10. | B157: Областная программа "Программа наказов избирателей депутатам Кромского районного Совета народных депутатов на 2012 год | C157: 950 | D157: 950 | E157: 100 | F157: 950 | G157: =G159 -> 100
B158: в том числе : | H158: Ремонт МБОУ КР ОО "Вожовская средняя общеобразовательная школа им. Пузырева", МБОУ КР ОО "Кромская средняя общеобразовательная школа", МБОУ КР ОО "Шаховская средняя общеобразовательная школа", установка окон МБОУ КР ОО "Кривчиковская средняя общеобразовательная школа", обустройство столовой, МБОУ КР ОО "Кутафинская средняя общеобразовательная школа"
B159: местный бюджет | C159: 950 | D159: 950 | E159: 100 | F159: 950 | G159: =G164 -> 100
B160: областной бюджет
B161: федеральный бюджет
B162: внебюджетные источники
B163: в том числе по мероприятиям:
B164: Капитальные вложения, всего | C164: 900 | D164: 900 | E164: =E166 -> 100 | F164: 900 | G164: =G166 -> 100
B165: в том числе:
B166: местный бюджет | C166: 900 | D166: 900 | E166: 100 | F166: 900 | G166: 100
B167: Из общей суммы капвложений:
B168: - ремонт школ, всего | C168: 350 | D168: 350 | E168: 100 | F168: 350 | G168: 100 | H168: отремонтированы водопроводы в сельских поселениях, заменены насосы на башнях и т.д.
B169: в том числе:
B170: местный бюджет | C170: 350 | D170: 350 | E170: 100 | F170: 350 | G170: 100
B171: - ремонт водопроводов в сельских поселениях. | C171: 550 | D171: 550 | E171: 100 | F171: 550 | G171: 100
B172: в том числе:
B173: местный бюджет | C173: 550 | D173: 550 | E173: 100 | F173: 550 | G173: 100
B174: - приобретение основных средств | C174: 50 | D174: 50 | E174: 100 | F174: 50 | G174: 100
B175: Прочие нужды
A176: 11. | B176: Областная программа "Программа наказов избирателей депутатам Орловского областного Совета народных депутатов на 2012 год | C176: 510.4 | D176: 510.4 | E176: =E179 -> 100 | F176: 510.4 | G176: =G179 -> 100
B177: в том числе :
B178: местный бюджет
B179: областной бюджет | C179: 510.4 | D179: 510.4 | E179: 100 | F179: 510.4 | G179: 100
B180: федеральный бюджет
B181: внебюджетные источники
B182: в том числе по мероприятиям:
B183: Капитальные вложения, всего | C183: 410.4 | D183: 410.4 | E183: 100 | F183: 410.4 | G183: 100
B184: в том числе:
B185: областной бюджет | C185: 410.4 | D185: 410.4 | E185: 100 | F185: 410.4 | G185: 100
B186: Прочие нужды | C186: 100 | D186: 100 | E186: 100 | F186: 100 | G186: 100
B187: 1. Приобретение компьютеров для МБОУ КР ОО "Коровье - Болотовская средняя общеобразовательная школа", МБОУ КР ОО "Кромская начальная общеобразовательная школа" | C187: =C189 -> 74.8 | D187: =D189 -> 74.8 | E187: =E189 -> 100 | F187: =F189 -> 74.8 | G187: =G189 -> 100 | H187: Обеспечение условий для удовлетворения образовательными услугами. Соответствие САНПИНам
B188: в том числе:
B189: областной бюджет | C189: 74.8 | D189: 74.8 | E189: 100 | F189: 74.8 | G189: 100
B190: 2. Устройство душевых в спортзале МБОУ КР ОО "Глинская средняя общеобразовательная школа" | C190: =C192 -> 60 | D190: =D192 -> 60 | E190: =E192 -> 100 | F190: =F192 -> 60 | G190: =G192 -> 100 | H190: Обеспечение условий для удовлетворения образовательными услугами. Соответствие САНПИНам
B191: в том числе:
B192: областной бюджет | C192: 60 | D192: 60 | E192: 100 | F192: 60 | G192: 100
B193: 3. Текущий ремонт МБОУ КР ОО "Гуторовская средняя общеобразовтельная школа им. Куренцова А.И.", МБОУ КР ОО "Закромско - Хуторская основная общеобразовательная школа", МБОУ КР ОО "Гостомльская основная общеобразовательная школа". | C193: =C195 -> 39.4 | D193: =D195 -> 39.39 | E193: =E195 -> 100 | F193: =F195 -> 39.39 | G193: =G195 -> 100 | H193: Обеспечение условий для удовлетворения образовательными услугами. Соответствие САНПИНам
B194: в том числе:
B195: областной бюджет | C195: 39.4 | D195: 39.39 | E195: 100 | F195: 39.39 | G195: 100
B196: 4. Приобретение основных фондов
C197: 236.2 | D197: 236.2 | E197: 100 | F197: 236.2 | G197: 100
A199: 12. | B199: Программа "Обращение с отходами производства и потребления" | C199: 350 | D199: 0 | E199: 0 | F199: 0 | G199: 0 | H199: Денежные средства не выделялись ввиду их отсутствия В рамках реализации долгосрочной областной целевой программы "Обращение с отходами производства и потребления (2012-2014 годы) было выделено 500 тыс. руб. на утилизацию пришедших в негодность пестицидов: - с территории Большеколчевского сельского поселения -240 тыс. руб.; - с территории Бельдяжского сельского поселения - 260 тыс. руб.
B200: в том числе :
B201: местный бюджет | C201: 300 | D201: 0 | E201: 0 | F201: 0 | G201: 0
B202: областной бюджет | D202: 0 | E202: 0
B203: федеральный бюджет
B204: внебюджетные источники | C204: 50 | D204: 0 | E204: 0 | F204: 0 | G204: 0
... 192 more rows

Sheet Лист3
